[Event "ESP-ch Teams Honor 2024"]
[Site "Melilla"]
[Date "2024.10.12"]
[Round "1.6"]
[White "Ambartsumova, Karina"]
[Black "Matnadze Bujiashvili, Ann"]
[Result "1/2-1/2"]
[ECO "D30"]
[WhiteElo "2402"]
[BlackElo "2309"]
[Annotator "RC"]
[PlyCount "186"]
[EventDate "2024.10.11"]
[EventType "team-tourn"]
[EventCountry "ESP"]
[SourceTitle "playchess.com"]
[Source "ChessBase"]
[SourceQuality "1"]
[WhiteTeam "Sestao"]
[BlackTeam "Benalmadena"]
[TimeControl "5400+30"]

1. d4 {[%emt 0:00:14]} d5 {[%emt 0:00:29]} 2. c4 {[%emt 0:01:23]} e6 {[%emt 0:00:35]} 3. Nf3 {[%emt 0:01:26]} Nf6 {[%emt 0:00:14]} 4. g3 {[%emt 0:00:52]} g6 {[%emt 0:00:47]} 5. Bg2 {[%emt 0:01:57]} Bg7 {[%emt 0:00:03]} 6. O-O {[%emt 0:02:01]} O-O {[%emt 0:00:06]} 7. Nc3 {[%emt 0:00:49]} Na6 {[%emt 0:00:52]} 8. h4 {[%emt 0:02:24]} Ne4 {[%emt 0:05:12]} 9. Qb3 {[%emt 0:23:08]} dxc4 {[%emt 0:05:04]} 10. Qxc4 {[%emt 0:00:39]} Nd6 {[%emt 0:00:09]} 11. Qb3 {[%emt 0:09:56]} c5 {[%emt 0:14:29]} 12. Rd1 {[%emt 0:06:15]} c4 {[%emt 0:11:57]} 13. Qc2 {[%emt 0:06:01]} Nb4 {[%emt 0:07:10]} 14. Qb1 {[%emt 0:06:15]} Nf5 {[%emt 0:14:53]} 15. Bf4 {[%emt 0:16:07]} Nd5 {[%emt 0:04:52]} 16. Bg5 {[%emt 0:05:16]} f6 {[%emt 0:04:44]} 17. Bc1 {[%emt 0:02:45]} Nd6 {[%emt 0:02:34]} 18. e4 {[%emt 0:03:39]} Nxc3 {[%emt 0:02:57]} 19. bxc3 {[%emt 0:00:05]} Qb6 {[%emt 0:04:28]} 20. Qc2 {[%emt 0:00:36]} Nf7 {[%emt 0:04:41]} 21. Qa4 {[%emt 0:04:52]} Qc7 {[%emt 0:00:57]} 22. Bf4 {[%emt 0:01:06]} Bd7 {[%emt 0:05:07]} 23. Qb4 {[%emt 0:00:29]} e5 {[%emt 0:00:53]} 24. dxe5 {[%emt 0:00:48]} fxe5 {[%emt 0:00:27]} 25. Be3 {[%emt 0:00:12]} Bg4 {[%emt 0:01:39]} 26. Rd5 {[%emt 0:00:28]} Be6 {[%emt 0:01:28]} 27. Rd2 {[%emt 0:00:44]} h6 {[%emt 0:00:10]} 28. a4 {[%emt 0:01:20]} Rfc8 {[%emt 0:00:18]} 29. a5 {[%emt 0:00:41]} Bf8 {[%emt 0:01:11]} 30. Qa4 {[%emt 0:01:01]} Be7 {[%emt 0:01:53]} 31. Ne1 {[%emt 0:01:29]} Bc5 {[%emt 0:01:47]} 32. Nc2 {[%emt 0:00:20]} Rd8 {[%emt 0:00:31]} 33. Rad1 {[%emt 0:00:27]} Rxd2 {[%emt 0:01:50]} 34. Rxd2 {[%emt 0:00:01]} b6 {[%emt 0:01:12]} 35. Bxc5 {[%emt 0:01:32]} Qxc5 {[%emt 0:00:12]} 36. axb6 {[%emt 0:00:08]} Qxb6 {[%emt 0:00:06]} 37. Ne3 {[%emt 0:00:11]} Kg7 {[%emt 0:01:15]} 38. Nxc4 {[%emt 0:00:42]} Qc5 {[%emt 0:00:18]} 39. Bf1 {[%emt 0:00:49]} g5 {[%emt 0:00:38]} 40. Qb4 {[%emt 0:00:15]} Qxb4 {[%emt 0:00:54]} 41. cxb4 {[%emt 0:00:02]} gxh4 {[%emt 0:00:05]} 42. gxh4 {[%emt 0:00:06]} Rb8 {[%emt 0:00:12]} 43. Rb2 {[%emt 0:00:27]} Kf6 {[%emt 0:00:33]} 44. f3 {[%emt 0:00:49]} Nh8 {[%emt 0:01:13]} 45. Kf2 {[%emt 0:01:34]} Ng6 {[%emt 0:00:04]} 46. Kg3 {[%emt 0:00:19]} Nf4 {[%emt 0:00:04]} 47. b5 {[%emt 0:00:36]} Rg8+ {[%emt 0:00:32]} 48. Kh2 {[%emt 0:00:07]} Rc8 {[%emt 0:00:22]} 49. Rb4 {[%emt 0:00:58]} Rd8 {[%emt 0:00:21]} 50. Rb1 {[%emt 0:00:28]} Rc8 {[%emt 0:00:49]} 51. Rb4 {[%emt 0:00:29]} Rd8 {[%emt 0:00:01]} 52. Rb1 {[%emt 0:00:33]} Bxc4 {[%emt 0:01:00]} 53. Bxc4 {[%emt 0:00:01]} Rd2+ {[%emt 0:00:07]} 54. Kg1 {[%emt 0:00:53]} Rc2 {[%emt 0:00:15]} 55. Bb3 {[%emt 0:00:39]} Rg2+ {[%emt 0:00:31]} 56. Kh1 {[%emt 0:00:26]} Rf2 {[%emt 0:00:16]} 57. Ra1 {[%emt 0:00:23]} Rxf3 {[%emt 0:01:31]} 58. Ra6+ {[%emt 0:00:05]} Ke7 {[%emt 0:00:34]} 59. Rxa7+ {[%emt 0:00:06]} Kd6 {[%emt 0:00:03]} 60. Bf7 {[%emt 0:00:50]} Kc5 {[%emt 0:00:16]} 61. Be8 {[%emt 0:01:00]} Rb3 {[%emt 0:01:15]} 62. Ra4 {[%emt 0:00:43]} Rb2 {[%emt 0:00:19]} 63. Bc6 {[%emt 0:00:26]} Ne2 {[%emt 0:00:40]} 64. Ra3 {[%emt 0:00:11]} Kd4 {[%emt 0:00:44]} 65. Kg2 {[%emt 0:00:33]} Nc3+ {[%emt 0:00:27]} 66. Kf3 {[%emt 0:00:10]} Rb1 {[%emt 0:00:30]} 67. Kg4 {[%emt 0:00:34]} Nxb5 {[%emt 0:01:04]} 68. Bxb5 {[%emt 0:00:28]} Rxb5 {[%emt 0:00:02]} 69. Kf5 {[%emt 0:00:47]} h5 {[%emt 0:00:29]} 70. Ra8 {[%emt 0:00:45]} Ke3 {[%emt 0:00:22]} 71. Re8 {[%emt 0:00:19]} Kf3 {[%emt 0:01:06]} 72. Rxe5 {[%emt 0:00:10]} Rb4 {[%emt 0:00:13]} 73. Re8 {[%emt 0:00:50]} Ra4 {[%emt 0:00:55]} 74. Rb8 {[%emt 0:00:43]} Rxe4 {[%emt 0:00:25]} 75. Rb3+ {[%emt 0:00:28]} Re3 {[%emt 0:00:02]} 76. Rb5 {[%emt 0:00:32]} Re8 {[%emt 0:00:54]} 77. Rb3+ {[%emt 0:00:14]} Re3 {[%emt 0:00:02]} 78. Rb5 {[%emt 0:00:05]} Re8 {[%emt 0:00:13]} 79. Kg6 {[%emt 0:00:37]} Rg8+ {[%emt 0:01:44]} 80. Kf7 {[%emt 0:01:00]} Ra8 {[%emt 0:00:22]} 81. Kg6 {[%emt 0:00:32]} Rg8+ {[%emt 0:00:02]} 82. Kxh5 {[%emt 0:00:21]} Kf4 {[%emt 0:00:01]} 83. Rb6 {[%emt 0:00:45]} Kf5 {[%emt 0:00:42]} 84. Rh6 {[%emt 0:00:15]} Rg7 {[%emt 0:01:18]} 85. Rh8 {[%emt 0:00:12]} Kf6 {[%emt 0:00:14]} 86. Kh6 {[%emt 0:00:35]} Rg6+ {[%emt 0:00:02]} 87. Kh5 {[%emt 0:00:13]} Kg7 {[%emt 0:00:39]} 88. Ra8 {[%emt 0:00:29]} Rb6 {[%emt 0:00:30]} 89. Ra7+ {[%emt 0:00:15]} Kg8 {[%emt 0:00:07]} 90. Kg5 {[%emt 0:00:05]} Rb5+ {[%emt 0:00:12]} 91. Kg6 {[%emt 0:00:06]} Rb6+ {[%emt 0:00:06]} 92. Kg5 {[%emt 0:00:04]} Rb5+ {[%emt 0:00:03]} 93. Kg6 {[%emt 0:00:03]} Rb6+ {[%emt 0:00:03]} 1/2-1/2

[Event "ESP-ch Teams Honor 2024"]
[Site "Melilla"]
[Date "2024.10.12"]
[Round "1.7"]
[White "Santos Latasa, Jaime"]
[Black "Anton Guijarro, David"]
[Result "0-1"]
[ECO "C72"]
[WhiteElo "2621"]
[BlackElo "2667"]
[Annotator "RC"]
[PlyCount "134"]
[EventDate "2024.10.11"]
[EventType "team-tourn"]
[EventCountry "ESP"]
[SourceTitle "playchess.com"]
[Source "ChessBase"]
[SourceQuality "1"]
[WhiteTeam "Extremadura"]
[BlackTeam "Casablanca"]
[TimeControl "5400+30"]

1. e4 {[%emt 0:00:02]} e5 {[%emt 0:00:13]} 2. Nf3 {[%emt 0:00:05]} Nc6 {[%emt 0:00:12]} 3. Bb5 {[%emt 0:00:09]} a6 {[%emt 0:00:18]} 4. Ba4 {[%emt 0:00:05]} d6 {[%emt 0:00:24]} 5. O-O {[%emt 0:00:24]} Bd7 {[%emt 0:00:16]} 6. c3 {[%emt 0:00:48]} Nge7 {[%emt 0:00:26]} 7. d4 {[%emt 0:00:06]} Ng6 {[%emt 0:00:12]} 8. Bc2 {[%emt 0:05:42]} Be7 {[%emt 0:01:48]} 9. a4 {[%emt 0:02:47]} O-O {[%emt 0:25:26]} 10. d5 {[%emt 0:00:30]} Na7 {[%emt 0:01:41]} 11. Be3 {[%emt 0:14:08]} a5 {[%emt 0:04:17]} 12. Nbd2 {[%emt 0:02:11]} Nc8 {[%emt 0:02:07]} 13. Nc4 {[%emt 0:01:34]} Bg4 {[%emt 0:12:47]} 14. h3 {[%emt 0:01:34]} Bxf3 {[%emt 0:00:06]} 15. Qxf3 {[%emt 0:00:05]} Bg5 {[%emt 0:00:49]} 16. g3 {[%emt 0:06:17]} Bxe3 {[%emt 0:01:22]} 17. Nxe3 {[%emt 0:02:23]} Nb6 {[%emt 0:02:54]} 18. Kh2 {[%emt 0:01:58]} Kh8 {[%emt 0:02:43]} 19. Qe2 {[%emt 0:01:42]} Ne7 {[%emt 0:00:00]} 20. f4 {[%emt 0:00:00]} exf4 {[%emt 0:00:55]} 21. gxf4 {[%emt 0:00:00]} f5 {[%emt 0:00:46]} 22. Rae1 {[%emt 0:00:00]} fxe4 {[%emt 0:11:42]} 23. Bxe4 {[%emt 0:01:00]} Qe8 {[%emt 0:01:20]} 24. b3 {[%emt 0:02:31]} Qf7 {[%emt 0:04:20]} 25. c4 {[%emt 0:00:59]} Nd7 {[%emt 0:00:36]} 26. Qd2 {[%emt 0:04:27]} Nc5 {[%emt 0:02:25]} 27. Bc2 {[%emt 0:00:14]} b6 {[%emt 0:03:48]} 28. f5 {[%emt 0:03:00]} Rae8 {[%emt 0:04:23]} 29. Ng2 {[%emt 0:01:25]} Qf6 {[%emt 0:02:01]} 30. Qd1 {[%emt 0:05:14]} Ng8 {[%emt 0:06:42]} 31. Nf4 {[%emt 0:02:09]} Rxe1 {[%emt 0:01:00]} 32. Rxe1 {[%emt 0:01:12]} g6 {[%emt 0:04:33]} 33. Ne6 {[%emt 0:03:49]} Nxe6 {[%emt 0:00:23]} 34. Rxe6 {[%emt 0:00:04]} Qc3 {[%emt 0:01:15]} 35. Qd3 {[%emt 0:00:47]} Qb2 {[%emt 0:01:42]} 36. Qe2 {[%emt 0:00:35]} gxf5 {[%emt 0:00:26]} 37. Qf2 {[%emt 0:00:48]} Qg7 {[%emt 0:01:24]} 38. Qg3 {[%emt 0:01:24]} Qd4 {[%emt 0:00:36]} 39. Re2 {[%emt 0:01:16]} Rf7 {[%emt 0:00:54]} 40. Qe3 {[%emt 0:02:03]} Qxe3 {[%emt 0:00:33]} 41. Rxe3 {[%emt 0:00:06]} Ne7 {[%emt 0:00:29]} 42. Re6 {[%emt 0:00:22]} Ng6 {[%emt 0:00:30]} 43. Kg3 {[%emt 0:00:07]} Kg7 {[%emt 0:00:21]} 44. Kf2 {[%emt 0:02:00]} Kh6 {[%emt 0:00:31]} 45. Re8 {[%emt 0:01:51]} Kg5 {[%emt 0:00:14]} 46. Bd1 {[%emt 0:00:34]} Re7 {[%emt 0:00:54]} 47. Rg8 {[%emt 0:00:11]} Kh4 {[%emt 0:00:27]} 48. Bc2 {[%emt 0:00:23]} Rf7 {[%emt 0:00:15]} 49. Kg2 {[%emt 0:00:07]} Ne5 {[%emt 0:00:46]} 50. Rh8 {[%emt 0:00:44]} Kg5 {[%emt 0:00:33]} 51. Kg3 {[%emt 0:00:23]} Ng6 {[%emt 0:00:25]} 52. Rg8 {[%emt 0:00:16]} Kf6 {[%emt 0:00:38]} 53. Rc8 {[%emt 0:00:42]} Ke5 {[%emt 0:00:29]} 54. h4 {[%emt 0:01:05]} Kd4 {[%emt 0:00:34]} 55. h5 {[%emt 0:00:20]} f4+ {[%emt 0:00:08]} 56. Kf2 {[%emt 0:00:08]} Ne5 {[%emt 0:00:04]} 57. Rh8 {[%emt 0:00:45]} h6 {[%emt 0:00:25]} 58. Rg8 {[%emt 0:01:07]} Kc3 {[%emt 0:00:39]} 59. Bg6 {[%emt 0:00:20]} Rf6 {[%emt 0:00:23]} 60. Rg7 {[%emt 0:00:12]} f3 {[%emt 0:00:43]} 61. Be4 {[%emt 0:00:13]} Kxb3 {[%emt 0:00:24]} 62. Rxc7 {[%emt 0:00:43]} Ng4+ {[%emt 0:00:34]} 63. Kg3 {[%emt 0:00:22]} f2 {[%emt 0:00:09]} 64. Bd3 {[%emt 0:00:03]} Kc3 {[%emt 0:00:52]} 65. Be2 {[%emt 0:00:31]} Ne3 {[%emt 0:00:10]} 66. Re7 {[%emt 0:00:26]} Kd2 {[%emt 0:00:15]} 67. Re6 {[%emt 0:00:07]} Rf8 {[%emt 0:00:26]} 0-1

[Event "ESP-ch Teams Honor 2024"]
[Site "Melilla"]
[Date "2024.10.12"]
[Round "1.8"]
[White "Vallejo Pons, Francisco"]
[Black "Perez Candelario, Manuel"]
[Result "1/2-1/2"]
[ECO "B40"]
[WhiteElo "2653"]
[BlackElo "2588"]
[Annotator "TA"]
[PlyCount "69"]
[EventDate "2024.10.11"]
[EventType "team-tourn"]
[EventCountry "ESP"]
[SourceTitle "playchess.com"]
[Source "ChessBase"]
[SourceQuality "1"]
[WhiteTeam "Casablanca"]
[BlackTeam "Extremadura"]
[TimeControl "5400+30"]

{[%evp 9,69,7,14,9,15,0,0,10,21,16,21,7,20,13,12,12,0,0,0,14,20,16,42,41,52,56,56,56,58,49,72,70,50,47,43,43,42,15,45,13,6,0,0,0,0,0,0,0,0,0,0,0,0,0,19,0,0,0,0,0,0,-3]} 1. e4 {[%emt 0:00:06]} c5 {[%emt 0:00:04]} 2. Nf3 {[%emt 0:00:13]} e6 {[%emt 0:00:04]} 3. Nc3 {[%emt 0:02:16]} Nc6 {[%emt 0:01:18]} 4. h3 {[%emt 0:00:19]} a6 {[%emt 0:04:14]} 5. d4 {[%emt 0:00:46]} cxd4 {[%emt 0:00:07]} 6. Nxd4 {[%emt 0:00:07]} Qc7 {[%emt 0:04:16]} 7. Nxc6 {[%emt 0:00:46]} bxc6 {[%emt 0:03:48]} 8. Bd3 {[%emt 0:01:28]} d5 {[%emt 0:01:35]} 9. O-O {[%emt 0:00:37]} Nf6 {[%emt 0:00:38]} 10. Re1 {[%emt 0:03:42]} Bb7 {[%emt 0:04:54]} 11. b3 {[%emt 0:23:05]} Be7 {[%emt 0:02:52]} 12. Qf3 {[%emt 0:12:56]} O-O {[%emt 0:10:15]} 13. Bb2 {[%emt 0:17:09]} Rfe8 {[%emt 0:02:36]} 14. Na4 {[%emt 0:02:36]} c5 {[%emt 0:07:26]} 15. exd5 {[%emt 0:01:04]} Bxd5 {[%emt 0:03:12]} 16. Qe3 {[%emt 0:01:47]} Nd7 {[%emt 0:07:33][%cal Bf6d7,Bd7f8,Bf8g6][%mdl 32]} 17. Nc3 {[%emt 0:04:30]} Bb7 {[%emt 0:01:11]} 18. Ne4 {[%emt 0:00:58][%cal Bc3e4,Be4d2,Bd2c4][%mdl 32]} Nf8 {[%emt 0:03:44]} 19. Nd2 {[%emt 0:05:11]} Ng6 {[%emt 0:04:18]} 20. Nc4 {[%emt 0:00:47] White is more active.} Rad8 {[%emt 0:02:26]} 21. Bc3 {[%emt 0:02:59] Threatens to win with Ba5.} Bf6 {[%emt 0:03:59]} 22. Bxg6 {[%emt 0:02:31]} hxg6 {[%emt 0:00:19]} 23. Rad1 {[%emt 0:00:57] Against Bd4} Rd5 {[%emt 0:04:35]} 24. Rxd5 {[%emt 0:01:26]} Bxd5 {[%emt 0:00:04] The position is equal.} 25. Bxf6 {[%emt 0:00:26]} gxf6 {[%emt 0:00:12]} 26. Qc3 {[%emt 0:00:35]} Bxc4 {[%emt 0:07:15]} 27. Qxc4 $11 {[%emt 0:00:16][%mdl 4096] Endgame. KQR-KQR} a5 {[%emt 0:01:45]} 28. Rd1 {[%emt 0:00:39]} Kg7 {[%emt 0:01:58]} 29. a3 {[%emt 0:02:55]} Rb8 {[%emt 0:02:23]} 30. h4 {[%emt 0:01:24]} Rb6 {[%emt 0:01:47]} 31. Rd3 {[%emt 0:00:47]} Rd6 {[%emt 0:01:32]} 32. b4 {[%emt 0:01:52]} axb4 {[%emt 0:02:33]} 33. axb4 {[%emt 0:00:02] [#] Strongly threatening Rxd6.} Rb6 {[%emt 0:02:34]} ({Much worse is} 33... Rxd3 $6 34. cxd3 Qc6 35. Qxc5 $18 (35. bxc5 Kg8 $18)) 34. c3 {[%emt 0:04:06]} Qc6 {[%emt 0:04:04]} 35. Qxc5 {[%emt 0:02:15] Weighted Error Value: White=0.04 (flawless) /Black=0.04 (flawless) .  Inaccurate:     	White=2     	Black=2      OK:         	White=12    	Black=13     Best:        	---       	Black=1} 1/2-1/2

[Event "ESP-ch Teams Honor 2024"]
[Site "Melilla"]
[Date "2024.10.12"]
[Round "1.9"]
[White "Oro, Faustino"]
[Black "Salgado Lopez, Ivan"]
[Result "1/2-1/2"]
[ECO "C65"]
[WhiteElo "2434"]
[BlackElo "2609"]
[Annotator "TA"]
[PlyCount "97"]
[EventDate "2024.10.11"]
[EventType "team-tourn"]
[EventCountry "ESP"]
[SourceTitle "playchess.com"]
[Source "ChessBase"]
[SourceQuality "1"]
[WhiteTeam "Extremadura"]
[BlackTeam "Casablanca"]
[TimeControl "5400+30"]

{[%evp 23,97,18,15,12,39,14,4,0,18,-25,31,7,57,30,32,37,51,59,50,79,79,21,47,43,47,50,50,43,47,0,81,81,74,73,61,23,27,16,33,13,47,2,11,15,4,0,90,16,35,17,15,0,0,-14,8,0,8,-5,0,0,-2,-53,-37,-107,0,0,0,-10,0,0,0,0,8,0,0,0]} 1. e4 {[%emt 0:00:05]} e5 {[%emt 0:00:12]} 2. Nf3 {[%emt 0:00:05]} Nc6 {[%emt 0:00:08]} 3. Bb5 {[%emt 0:00:05]} Nf6 {[%emt 0:00:10]} 4. d3 {[%emt 0:00:07]} d6 {[%emt 0:01:02]} 5. O-O {[%emt 0:00:26]} Bd7 {[%emt 0:00:12]} 6. c3 {[%emt 0:00:48]} g6 {[%emt 0:02:00]} 7. Re1 {[%emt 0:01:19]} Bg7 {[%emt 0:00:14]} 8. Nbd2 {[%emt 0:01:00]} O-O {[%emt 0:00:29]} 9. Nf1 {[%emt 0:00:55]} Re8 {[%emt 0:05:33]} 10. Ng3 {[%emt 0:01:13]} h6 {[%emt 0:01:47]} 11. h3 {[%emt 0:04:57]} d5 {[%emt 0:01:08]} 12. Ba4 {[%emt 0:02:08]} a6 {[%emt 0:04:26]} 13. Be3 {[%emt 0:17:40]} Kh7 {[%emt 0:00:44]} 14. Bc2 {[%emt 0:05:21]} Be6 {[%emt 0:05:00]} 15. Qe2 {[%emt 0:01:48]} Qe7 {[%emt 0:08:30]} 16. b4 {[%emt 0:04:45]} Rad8 {[%emt 0:02:45]} (16... d4 $1 $11 17. Bd2 (17. cxd4 exd4 18. Bd2 Nxb4 $15) 17... dxc3 18. Bxc3 Nxb4) 17. a3 {[%emt 0:03:16]} Rd7 {[%emt 0:03:25]} (17... Nd7 $11) 18. Rab1 {[%emt 0:02:49]} Red8 {[%emt 0:04:06]} 19. a4 {[%emt 0:04:48]} b5 {[%emt 0:03:17]} 20. Bc5 {[%emt 0:03:43]} Qe8 {[%emt 0:00:09]} 21. axb5 {[%emt 0:01:09]} axb5 {[%emt 0:00:09]} 22. Bb3 {[%emt 0:03:15]} ({White should play} 22. d4 $16) 22... Kg8 {[%emt 0:07:27]} 23. d4 {[%emt 0:04:18]} Nxe4 $1 {[%emt 0:14:54]} 24. Qxb5 {[%emt 0:03:30]} Nxc5 {[%emt 0:00:50]} 25. Qxc5 {[%emt 0:00:31]} e4 {[%emt 0:00:51]} 26. Ba4 {[%emt 0:02:27]} (26. Qxc6 exf3 27. Bd1 (27. gxf3 Qe7 $17) 27... fxg2 $11) (26. Nxe4 $1 $14 dxe4 27. Qxc6 exf3 28. d5) 26... Nb8 {[%emt 0:03:14] [#]} 27. Ne5 $1 $16 {[%emt 0:01:23] White is much more active. The black rooks are passive.} (27. Bxd7 $2 Nxd7 28. Qxc7 exf3 $19) 27... Bxe5 {[%emt 0:00:56]} 28. dxe5 {[%emt 0:00:10]} c6 {[%emt 0:00:48]} 29. Ne2 {[%emt 0:01:26][%cal Oe2d4]} (29. c4 $5) 29... Rb7 {[%emt 0:01:33]} 30. Nd4 {[%emt 0:03:54]} Bd7 {[%emt 0:01:04]} 31. Bc2 {[%emt 0:06:19]} Qf8 {[%emt 0:09:47]} 32. Qa5 {[%emt 0:01:41][%cal Oc3c4]} Qe7 {[%emt 0:02:05][%cal Od8e8]} 33. f3 {[%emt 0:01:03]} exf3 {[%emt 0:03:07]} 34. Nxf3 {[%emt 0:00:58][%cal Oe5e6]} Be8 {[%emt 0:00:16] Black is weak on the dark squares} (34... Rc8 $11 {keeps the balance.}) 35. Ra1 {[%emt 0:01:09]} (35. e6 $16 {exf7+ is the strong threat.} fxe6 36. Re2 (36. Rxe6 Qxe6 37. Qxd8 Qe3+ 38. Kh1 Qe7 $16)) 35... Nd7 $11 {[%emt 0:00:54]} 36. Nd4 {[%emt 0:03:33]} Nf8 $1 {[%emt 0:00:30]} (36... Nxe5 $2 {is the wrong capture.} 37. Rxe5 Qxe5 38. Qxd8 $18) 37. Bd3 {[%emt 0:03:46]} Rdb8 {[%emt 0:02:28]} 38. Ra2 {[%emt 0:02:28]} Kg7 {[%emt 0:02:40]} 39. Qa3 {[%emt 0:01:38]} Rc7 {[%emt 0:01:01]} 40. Rc2 {[%emt 0:02:21]} c5 {[%emt 0:00:49]} 41. bxc5 {[%emt 0:00:10]} Qxc5 {[%emt 0:00:42]} 42. Qa6 {[%emt 0:02:33]} ({Better is} 42. Qxc5 $11 Rxc5 43. e6) 42... Rb6 {[%emt 0:02:29]} 43. Qa8 {[%emt 0:00:15] [#]} (43. Qa2 $15) 43... Rc8 {[%emt 0:00:27]} (43... Rb3 $1 $17 {[%cal Rb3c3]} 44. Qa1 (44. Qxe8 $2 {too greedy.} Rxc3 45. Qa4 Rxc2 $19) 44... Rxc3 45. Qxc3 Qxc3 46. Rxc3 Rxc3) 44. Qa1 {[%emt 0:00:17] The position is equal.} Ne6 {[%emt 0:00:42]} 45. Kh1 {[%emt 0:00:34]} Nf4 {[%emt 0:00:30]} 46. Bf1 {[%emt 0:02:04]} Ne6 {[%emt 0:00:07] And now ...Nxd4 would win.} 47. Bd3 {[%emt 0:00:28]} Nf4 {[%emt 0:00:05]} 48. Bf1 {[%emt 0:02:24]} Ne6 {[%emt 0:00:06] ...Nxd4 would now be deadly.} 49. Bd3 {[%emt 0:00:22] Weighted Error Value: White=0.18 (very precise) /Black=0.20 (precise) .  Mistake:       	White=5     	Black=5      Inaccurate:     	White=4     	Black=3      OK:         	White=11    	Black=9      Best:        	---       	Black=1      Strong:       	White=1     	Black=2} 1/2-1/2

[Event "ESP-ch Teams Honor 2024"]
[Site "Melilla"]
[Date "2024.10.12"]
[Round "1.10"]
[White "Gines Esteo, Pedro Antonio"]
[Black "Shuvalova, Polina"]
[Result "1-0"]
[ECO "A14"]
[WhiteElo "2477"]
[BlackElo "2472"]
[Annotator "RC"]
[PlyCount "119"]
[EventDate "2024.10.11"]
[EventType "team-tourn"]
[EventCountry "ESP"]
[SourceTitle "playchess.com"]
[Source "ChessBase"]
[SourceQuality "1"]
[WhiteTeam "Casablanca"]
[BlackTeam "Extremadura"]
[TimeControl "5400+30"]

1. Nf3 {[%emt 0:00:11]} d5 {[%emt 0:00:04]} 2. g3 {[%emt 0:00:07]} Nf6 {[%emt 0:00:40]} 3. Bg2 {[%emt 0:00:07]} e6 {[%emt 0:00:06]} 4. O-O {[%emt 0:00:08]} Be7 {[%emt 0:00:03]} 5. c4 {[%emt 0:07:15]} O-O {[%emt 0:05:15]} 6. b3 {[%emt 0:01:13]} b6 {[%emt 0:01:02]} 7. Bb2 {[%emt 0:00:51]} Bb7 {[%emt 0:01:46]} 8. cxd5 {[%emt 0:07:49]} Nxd5 {[%emt 0:00:30]} 9. d4 {[%emt 0:00:21]} Nd7 {[%emt 0:02:18]} 10. Re1 {[%emt 0:01:46]} c5 {[%emt 0:03:51]} 11. e4 {[%emt 0:00:46]} N5f6 {[%emt 0:00:06]} 12. Nc3 {[%emt 0:00:36]} cxd4 {[%emt 0:01:51]} 13. Nxd4 {[%emt 0:00:08]} Bc5 {[%emt 0:00:53]} 14. Re2 {[%emt 0:02:57]} Rc8 {[%emt 0:05:16]} 15. Ndb5 {[%emt 0:35:41]} Ne5 {[%emt 0:01:52]} 16. Rd2 {[%emt 0:23:00]} Qe7 {[%emt 0:00:17]} 17. Na4 {[%emt 0:00:48]} Bb4 {[%emt 0:33:58]} 18. Bxe5 {[%emt 0:02:03]} Bxd2 {[%emt 0:00:44]} 19. Qxd2 {[%emt 0:00:36]} Rfd8 {[%emt 0:14:58]} 20. Qf4 {[%emt 0:07:12]} Ne8 {[%emt 0:07:27]} 21. Qe3 {[%emt 0:04:55]} Bc6 {[%emt 0:12:58]} 22. Nxa7 {[%emt 0:01:35]} Qxa7 {[%emt 0:02:09]} 23. Nxb6 {[%emt 0:00:01]} Rb8 {[%emt 0:01:57]} 24. Bxb8 {[%emt 0:00:21]} Rxb8 {[%emt 0:00:04]} 25. Nc4 {[%emt 0:00:21]} Qa8 {[%emt 0:00:04]} 26. Ne5 {[%emt 0:01:42]} Bb7 {[%emt 0:00:17]} 27. Nd7 {[%emt 0:00:26]} Rd8 {[%emt 0:00:27]} 28. Nc5 {[%emt 0:00:02]} Bc6 {[%emt 0:00:07]} 29. a4 {[%emt 0:00:39]} Qa5 {[%emt 0:01:25]} 30. Rc1 {[%emt 0:00:30]} Nf6 {[%emt 0:00:41]} 31. h3 {[%emt 0:00:14]} Ba8 {[%emt 0:00:54]} 32. Qc3 {[%emt 0:00:49]} Qa7 {[%emt 0:00:31]} 33. b4 {[%emt 0:00:17]} Rc8 {[%emt 0:00:14]} 34. Qd4 {[%emt 0:01:22]} h5 {[%emt 0:00:56]} 35. Rd1 {[%emt 0:00:21]} Kh8 {[%emt 0:01:24]} 36. a5 {[%emt 0:00:22]} Qb8 {[%emt 0:00:49]} 37. Nd7 {[%emt 0:00:51]} Nxd7 {[%emt 0:00:11]} 38. Qxd7 {[%emt 0:00:02]} Kg8 {[%emt 0:00:18]} 39. b5 {[%emt 0:00:22]} h4 {[%emt 0:00:09]} 40. gxh4 {[%emt 0:00:35]} Rf8 {[%emt 0:00:07]} 41. b6 {[%emt 0:00:30]} Bb7 {[%emt 0:00:03]} 42. Qc7 {[%emt 0:00:58]} Qa8 {[%emt 0:00:03]} 43. Rd7 {[%emt 0:00:36]} Bc6 {[%emt 0:01:26]} 44. b7 {[%emt 0:00:16]} Bxb7 {[%emt 0:00:02]} 45. Qxb7 {[%emt 0:00:08]} Qxa5 {[%emt 0:00:01]} 46. Bf3 {[%emt 0:01:02]} Qa1+ {[%emt 0:00:25]} 47. Kg2 {[%emt 0:00:07]} Qf6 {[%emt 0:00:02]} 48. Qc7 {[%emt 0:00:58]} Qxh4 {[%emt 0:00:09]} 49. Qg3 {[%emt 0:00:10]} Qf6 {[%emt 0:00:07]} 50. h4 {[%emt 0:00:36]} Qb2 {[%emt 0:02:01]} 51. Qg5 {[%emt 0:00:36]} Qc3 {[%emt 0:01:15]} 52. h5 {[%emt 0:00:33]} Kh7 {[%emt 0:00:31]} 53. Qe7 {[%emt 0:00:29]} Qc8 {[%emt 0:01:21]} 54. Rc7 {[%emt 0:00:13]} Qb8 {[%emt 0:00:07]} 55. e5 {[%emt 0:00:46]} Kg8 {[%emt 0:00:04]} 56. Bc6 {[%emt 0:00:27]} Kh7 {[%emt 0:00:44]} 57. Be4+ {[%emt 0:00:38]} Kh6 {[%emt 0:00:51]} 58. Kg3 {[%emt 0:00:30]} Qb2 {[%emt 0:00:48]} 59. Qxf8 {[%emt 0:00:33]} Qxe5+ {[%emt 0:00:06]} 60. f4 {[%emt 0:00:03]} 1-0